bitfinex/quotes_SOLUSD_20251206
["timestamp","ask_amount","ask_price","bid_price","bid_amount"]
[1764988389968,10.55462078,133.11,133.08,3.03929468]
[1764988390159,10.55462078,133.11,133.09,0.7]
[1764988392162,7.51221439,133.12,133.09,0.7]
[1764988392344,18.77683517,133.12,133.09,0.7]
[1764988393364,8.22221439,133.12,133.09,0.7]
[1764988393569,27.01000428,133.12,133.09,0.7]
[1764988395369,8.22221439,133.12,133.09,0.7]
[1764988395672,18.78778989,133.11,133.09,0.7]
[1764988395871,26.3003789,133.11,133.09,0.7]
[1764988396203,18.78778989,133.11,133.09,0.7]
[1764988397162,0.71,133.12,133.09,0.7]
[1764988397470,18.78778989,133.11,133.09,0.7]
[1764988404968,8.22223866,133.12,133.09,0.7]
[1764988405273,27.01002855,133.12,133.09,0.7]
[1764988407149,8.22223866,133.12,133.09,0.7]
[1764988407351,18.78778989,133.11,133.09,0.7]
[1764988408869,18.78778989,133.11,133.09,8.21359329]
[1764988409084,111.26,133.13,133.09,11.25288797]
[1764988409085,103.0,133.13,133.09,11.25288797]
[1764988409261,103.0,133.13,133.1,0.7]
[1764988409571,103.0,133.13,133.1,3.73929468]
[1764988409773,121.78584124,133.13,133.1,3.73929468]
[1764988409967,121.78584124,133.13,133.11,0.7]
[1764988412256,122.49584124,133.13,133.1,8.21291895]
[1764988414273,122.49584124,133.13,133.11,0.7]
[1764988414473,121.78584124,133.13,133.11,0.7]
[1764988418079,122.49584124,133.13,133.11,0.7]
[1764988418489,121.78584124,133.13,133.11,0.7]
[1764988422092,124.82513592,133.13,133.11,0.7]
[1764988422290,121.78584124,133.13,133.11,0.7]
[1764988432081,103.0,133.13,133.11,0.7]
[1764988435088,103.69,133.13,133.11,0.7]
[1764988436294,103.0,133.13,133.11,0.7]
[1764988452488,0.2,133.15,133.11,12.9549807]
[1764988452688,0.2,133.15,133.12,0.66]
[1764988452895,0.2,133.15,133.12,5.40251251]
[1764988453302,0.2,133.15,133.13,0.66]
[1764988454218,0.2,133.15,133.13,8.17125263]
[1764988454389,0.2,133.15,133.14,0.66]
[1764988454585,0.71,133.14,133.1,0.972]
[1764988454997,6.35251251,133.14,133.1,0.972]
[1764988455199,0.71,133.13,133.1,0.972]
[1764988455393,17.23119755,133.13,133.1,0.972]
[1764988455598,17.23119755,133.13,133.1,8.48493464]
[1764988458117,16.52119755,133.13,133.11,8.17226052]
[1764988458314,0.9,133.14,133.11,12.91477303]
[1764988458513,1.61,133.14,133.12,0.66]
[1764988458814,0.71,133.14,133.12,0.66]
[1764988459023,18.14119755,133.15,133.12,0.66]
[1764988459609,0.71,133.14,133.12,0.66]
[1764988461322,25.65165506,133.15,133.12,0.66]
[1764988462823,24.94165506,133.15,133.12,0.66]
[1764988463028,0.71,133.14,133.12,0.66]
[1764988464249,25.65165506,133.15,133.12,0.66]
[1764988464923,18.14119755,133.15,133.12,8.17200067]
[1764988465325,17.43119755,133.15,133.12,7.51200067]
[1764988465539,0.2,133.15,133.13,0.66]
[1764988466846,8.42041141,133.15,133.11,8.17239271]
[1764988467045,8.42041141,133.15,133.11,12.91490522]
[1764988467224,8.42041141,133.15,133.12,0.66]
[1764988471268,0.71,133.14,133.11,8.17239271]
[1764988471843,0.71,133.14,133.11,0.66]
[1764988472344,5.45251251,133.14,133.1,8.13502482]
[1764988472544,5.45251251,133.14,133.1,8.79502482]
[1764988472764,0.71,133.13,133.1,1.282]
[1764988472982,0.71,133.13,133.1,1.377]
[1764988473261,8.22151029,133.13,133.1,0.717]
[1764988473457,8.22151029,133.13,133.11,0.66]
[1764988477770,27.00631163,133.14,133.11,0.66]
[1764988478068,8.22109125,133.14,133.11,0.66]
[1764988478250,21.28870711,133.14,133.11,0.66]
[1764988478773,7.51091226,133.14,133.11,5.40251251]
[1764988478954,21.41294166,133.15,133.11,12.91500018]
[1764988479152,0.72,133.14,133.12,0.67]
[1764988479770,0.72,133.14,133.11,12.25500018]
[1764988479982,0.72,133.14,133.11,12.92500018]
[1764988480377,8.43042915,133.15,133.12,0.67]
[1764988480674,7.71042915,133.15,133.12,0.67]
[1764988482552,0.2,133.15,133.12,12.92408823]
[1764988482752,0.2,133.15,133.12,21.16408823]
[1764988482966,0.2,133.15,133.13,0.67]
[1764988483851,0.72,133.14,133.12,8.24]
[1764988484046,25.95660074,133.14,133.1,17.32959049]
[1764988484456,0.72,133.13,133.11,0.67]
[1764988484660,0.72,133.13,133.1,16.65959049]
[1764988484968,0.72,133.13,133.1,17.32959049]
[1764988485165,8.23148791,133.13,133.1,9.817]
[1764988485370,0.72,133.13,133.1,22.07265831]
[1764988485556,0.72,133.13,133.11,0.67]
[1764988486280,33.4677141,133.14,133.11,0.67]
[1764988486781,0.72,133.13,133.1,22.07265831]
[1764988487183,1.62,133.13,133.1,22.07265831]
[1764988488289,0.9,133.13,133.11,0.67]
[1764988488781,0.67,133.12,133.1,0.907]
[1764988488961,5.41251251,133.12,133.1,0.907]
[1764988489161,24.13402542,133.13,133.1,1.577]
[1764988489362,8.18111491,133.14,133.11,0.67]
[1764988489684,28.67697391,133.14,133.11,0.67]
[1764988489889,0.67,133.13,133.11,0.67]
[1764988491063,0.67,133.13,133.1,9.08970804]
[1764988491260,13.65251251,133.13,133.1,9.08970804]
[1764988491675,0.67,133.12,133.1,9.08970804]
[1764988492783,13.65251251,133.13,133.1,9.08970804]
[1764988492992,14.32251251,133.13,133.1,8.41970804]
[1764988493185,14.32251251,133.13,133.11,0.67]
[1764988494280,0.67,133.13,133.11,0.67]
[1764988495118,11.94540194,133.13,133.11,0.67]
[1764988495710,11.94540194,133.13,133.1,8.41970804]
[1764988495880,11.94540194,133.13,133.1,9.08970804]
[1764988496081,11.94540194,133.13,133.11,0.67]
[1764988498606,11.94540194,133.13,133.1,9.18470804]
[1764988498786,11.94540194,133.13,133.1,8.51470804]
[1764988498985,11.94540194,133.13,133.11,0.67]
[1764988499695,11.27540194,133.13,133.11,0.67]
[1764988500087,18.98591071,133.15,133.11,8.18256624]
[1764988500407,11.27540194,133.14,133.11,8.18256624]
[1764988500609,11.27540194,133.14,133.12,0.67]
[1764988503308,11.94540194,133.14,133.12,0.67]
[1764988505114,22.49173688,133.14,133.1,8.51491428]
[1764988505419,22.49173688,133.14,133.11,0.67]
[1764988506720,0.67,133.13,133.11,0.67]
[1764988506912,11.21633494,133.14,133.11,0.67]
[1764988507113,15.75351585,133.13,133.11,0.67]
[1764988507422,11.21633494,133.14,133.11,0.67]
[1764988507721,26.96985079,133.14,133.11,0.67]
[1764988508117,0.9,133.13,133.11,0.67]
[1764988509520,19.06113276,133.14,133.11,8.18255199]
[1764988509712,11.55019976,133.14,133.11,11.21795393]
[1764988509913,11.55019976,133.14,133.12,0.72]
[1764988510216,7.71035537,133.15,133.12,0.72]
[1764988510610,18.2583093,133.15,133.12,0.72]
[1764988511516,10.74795393,133.15,133.12,0.72]
[1764988511819,7.71046785,133.15,133.12,0.72]
[1764988512119,10.74586979,133.15,133.12,0.72]
[1764988514117,0.2,133.15,133.12,11.26736195]
[1764988514614,0.2,133.15,133.13,0.72]
[1764988516845,11.4360103,133.15,133.13,0.72]
[1764988517244,18.94830144,133.15,133.13,0.72]
[1764988517760,18.25830144,133.15,133.13,0.72]
[1764988517962,18.94830144,133.15,133.11,8.23229114]
[1764988518125,15.2228995,133.15,133.12,0.72]
[1764988521931,0.69,133.14,133.11,0.72]
[1764988522455,11.23769308,133.14,133.11,0.72]
[1764988522753,10.54769308,133.14,133.11,0.72]
[1764988522941,14.27309502,133.14,133.11,0.72]
[1764988523344,0.69,133.13,133.1,1.722]
[1764988523948,26.99066027,133.13,133.1,1.722]
[1764988525756,26.30066027,133.13,133.1,1.002]
[1764988526053,26.30066027,133.13,133.11,0.72]
[1764988527654,26.99066027,133.13,133.1,4.75740194]
[1764988528161,26.99066027,133.13,133.1,4.03740194]
[1764988528366,26.30066027,133.13,133.11,0.72]
[1764988534363,7.51176299,133.13,133.11,0.72]
[1764988537070,0.2,133.15,133.11,3.75540194]
[1764988537439,0.89,133.15,133.12,0.72]
[1764988537864,16.64349534,133.15,133.12,0.72]
[1764988538163,0.89,133.15,133.12,0.72]
[1764988538474,3.03540194,133.14,133.12,0.72]
[1764988546369,3.03540194,133.14,133.12,8.23200412]
[1764988546561,7.71036214,133.15,133.13,0.71]
[1764988547670,0.2,133.15,133.13,0.71]
[1764988552352,7.71200332,133.15,133.13,0.71]
[1764988554167,7.71200332,133.15,133.13,8.22144812]
[1764988554372,0.2,133.15,133.13,12.96160935]
[1764988554570,0.2,133.15,133.14,0.72]
[1764988563691,0.2,133.15,133.14,5.46016123]
[1764988565388,0.2,133.15,133.14,0.72]
[1764988568484,0.2,133.15,133.14,12.97105202]
[1764988569394,0.2,133.15,133.14,17.71121325]
[1764988570094,0.2,133.15,133.14,20.7177148]
[1764988570278,0.2,133.15,133.14,15.97755357]
[1764988573104,0.2,133.15,133.14,20.7177148]
[1764988575302,0.2,133.15,133.14,28.9577148]
[1764988575908,0.2,133.16,133.14,28.9577148]
[1764988576217,0.2,133.16,133.15,5.46016123]
[1764988576630,0.2,133.16,133.15,8.46643683]
[1764988577631,0.2,133.16,133.15,15.97676352]
[1764988583611,0.2,133.17,133.15,15.97676352]
[1764988583837,0.2,133.17,133.16,13.70016123]
[1764988584236,0.2,133.17,133.16,16.7062109]
[1764988584641,0.2,133.18,133.16,16.7062109]
[1764988584822,1e-08,133.18,133.17,5.46016123]
[1764988585223,1e-08,133.18,133.17,23.26198444]
[1764988585429,1e-08,133.18,133.17,28.00214567]
[1764988585626,1e-08,133.18,133.17,35.51134443]
[1764988591768,1e-08,133.18,133.17,43.75134443]
[1764988599401,1e-08,133.18,133.17,52.56128935]
[1764988599695,0.2,133.21,133.17,52.56128935]
[1764988599696,0.2,133.21,133.2,4.74016123]
[1764988599896,0.2,133.21,133.2,12.98016123]
[1764988600069,0.2,133.21,133.2,13.66016123]
[1764988600271,0.2,133.21,133.2,16.66530754]
[1764988600771,0.2,133.21,133.2,24.17281504]
[1764988603476,0.2,133.23,133.2,47.68174503]
[1764988603685,0.2,133.23,133.22,4.74016123]
[1764988603883,1e-08,133.23,133.22,12.98016123]
[1764988604194,1e-08,133.23,133.22,16.66463037]
[1764988604978,1e-08,133.24,133.23,13.55010615]
[1764988605180,0.2,133.25,133.23,14.23010615]
[1764988605392,0.2,133.25,133.24,21.1654149]
[1764988605695,0.2,133.25,133.24,24.16943277]
[1764988606396,0.2,133.27,133.25,9.48994492]
[1764988606614,1e-08,133.27,133.26,13.66016123]
[1764988607004,1e-08,133.28,133.27,9.48994492]
[1764988607311,1e-08,133.28,133.27,18.97026738]
[1764988607618,1e-08,133.28,133.27,26.47383157]
[1764988607808,1e-08,133.28,133.27,42.78269557]
[1764988611414,0.2,133.3,133.29,4.74016123]
[1764988611617,0.2,133.3,133.29,12.98016123]
[1764988612620,0.2,133.3,133.29,20.48259952]
[1764988613029,0.92,133.3,133.29,20.48259952]
[1764988614502,0.92,133.3,133.29,18.7678617]
[1764988615521,0.2,133.3,133.29,18.7678617]
[1764988617223,0.92,133.3,133.29,18.7678617]
[1764988622131,0.92,133.3,133.29,15.74243829]
[1764988622520,0.92,133.3,133.29,18.7678617]
[1764988626740,0.92,133.3,133.29,15.74243829]
[1764988627036,0.92,133.3,133.29,18.7678617]
[1764988629624,0.92,133.3,133.28,7.50287067]
[1764988629824,0.92,133.3,133.27,7.50339718]
[1764988629825,0.72,133.29,133.27,7.50339718]
[1764988631954,0.72,133.29,133.26,15.74401068]
[1764988632127,11.24790976,133.29,133.26,8.24]
[1764988632328,11.24790976,133.29,133.25,7.50453636]
[1764988632528,0.72,133.28,133.25,7.50453636]
[1764988632942,3.74542341,133.28,133.24,8.24]
[1764988633450,0.72,133.27,133.24,8.24]
[1764988634030,0.72,133.27,133.24,15.74524867]
[1764988635045,8.22358176,133.27,133.24,8.24]
[1764988635240,0.72,133.27,133.24,8.24]
[1764988635554,0.72,133.26,133.24,15.74523155]
[1764988635926,0.72,133.26,133.24,18.77065496]
[1764988636553,0.72,133.26,133.24,15.74523155]
[1764988637759,8.22416504,133.26,133.22,10.53160569]
[1764988638061,8.22416504,133.26,133.22,15.74618228]
[1764988638260,0.72,133.25,133.23,7.50577329]
[1764988643073,0.72,133.25,133.22,18.7715913]
[1764988643254,0.72,133.25,133.22,8.24]
[1764988643255,11.25018823,133.25,133.22,8.24]
[1764988643459,8.22476482,133.25,133.22,8.24]
[1764988643755,0.72,133.24,133.22,15.74630471]
[1764988649480,7.50372395,133.27,133.22,15.74630471]
[1764988649774,0.72,133.26,133.23,0.7]
[1764988649976,3.74542341,133.26,133.22,15.74630471]
[1764988650573,0.72,133.25,133.22,15.74630471]
[1764988651161,3.02542341,133.24,133.2,8.24]
[1764988651582,0.72,133.23,133.2,16.44715856]
[1764988653465,0.72,133.23,133.2,15.74715856]
[1764988655896,11.25137443,133.23,133.19,7.50795634]
[1764988656092,8.22595102,133.23,133.19,3.72542341]
[1764988656271,8.22595102,133.23,133.2,0.7]
[1764988656472,0.72,133.22,133.19,3.02542341]
[1764988656689,0.72,133.22,133.19,3.72542341]
[1764988657079,0.72,133.22,133.2,7.50749384]
[1764988659008,0.72,133.22,133.19,0.7]
[1764988659009,0.72,133.22,133.19,7.50805561]
[1764988661892,8.22645541,133.22,133.18,16.3984503]
[1764988662302,0.69,133.21,133.18,8.24]
[1764988662605,3.02542341,133.2,133.16,8.15937386]
[1764988662910,3.71542341,133.21,133.16,8.15937386]
[1764988663087,0.69,133.2,133.16,8.15937386]
[1764988663794,0.69,133.2,133.16,11.18479727]
[1764988667519,0.69,133.2,133.16,8.15937386]
[1764988667908,10.53260349,133.21,133.16,7.50937386]
[1764988668126,10.53260349,133.21,133.17,3.67542341]
[1764988668127,0.69,133.21,133.17,3.67542341]
[1764988668297,0.69,133.21,133.17,11.91542341]
[1764988668498,0.69,133.21,133.18,0.71]
[1764988668699,0.69,133.22,133.18,0.71]
[1764988670029,0.69,133.22,133.19,7.50807117]
[1764988670529,114.22144666,133.23,133.2,0.71]
[1764988671021,0.69,133.22,133.2,0.71]
[1764988671219,0.69,133.22,133.19,8.21807117]
[1764988671408,0.69,133.22,133.19,7.50807117]
[1764988673395,0.69,133.22,133.19,8.21807117]
[1764988675225,0.69,133.22,133.19,7.50807117]
[1764988675526,0.69,133.22,133.19,8.21807117]
[1764988678733,4.73594472,133.21,133.18,7.5085503]
[1764988678934,12.93249926,133.22,133.18,0.71]
[1764988679227,0.69,133.21,133.18,0.71]
[1764988679826,0.69,133.21,133.17,12.97594472]
[1764988680018,5.42594472,133.21,133.17,8.24]
[1764988680219,4.73594472,133.19,133.17,8.24]
[1764988680728,0.69,133.18,133.17,8.24]
[1764988681110,0.69,133.2,133.17,16.45905644]
[1764988681311,12.24297799,133.21,133.17,15.74905644]
[1764988681511,0.69,133.2,133.17,16.45905644]
[1764988683433,0.69,133.2,133.17,8.21905644]
[1764988685035,12.93345444,133.2,133.17,8.21905644]
[1764988685240,8.19750972,133.2,133.17,8.21905644]
[1764988686540,0.69,133.19,133.17,8.21905644]
[1764988687621,0.69,133.2,133.17,8.21905644]
[1764988691047,0.69,133.2,133.16,4.73594472]
[1764988691239,12.93356317,133.2,133.16,8.20963224]
[1764988691635,0.67,133.19,133.16,8.20963224]
[1764988692454,5.40594472,133.19,133.15,8.24]
[1764988692649,4.73594472,133.18,133.14,0.7]
[1764988692832,5.40594472,133.18,133.14,0.7]
[1764988693152,0.67,133.17,133.14,0.7]
[1764988693339,0.67,133.17,133.14,8.21082715]
[1764988693544,8.1794223,133.17,133.13,16.65143646]
[1764988693730,8.1794223,133.17,133.14,0.7]
[1764988699562,103.0,133.18,133.15,4.73594472]
[1764988700159,103.0,133.18,133.16,0.7]
[1764988700553,103.67,133.18,133.16,0.7]
[1764988701564,103.67,133.18,133.15,8.21023356]
[1764988701762,103.67,133.18,133.15,12.94617828]
[1764988702367,103.67,133.18,133.15,12.24617828]
[1764988702658,103.0,133.18,133.16,0.7]
[1764988704653,103.67,133.18,133.16,0.7]
[1764988704848,5.40594472,133.17,133.14,8.21066988]
[1764988705165,0.67,133.17,133.14,8.21066988]
[1764988705358,0.67,133.17,133.15,0.7]
[1764988705866,8.1792164,133.17,133.14,0.7]
[1764988706078,115.91477242,133.18,133.15,0.7]
[1764988707370,0.67,133.17,133.15,0.7]
[1764988707908,0.67,133.17,133.14,7.51088076]
[1764988708184,8.17919897,133.17,133.14,0.7]
[1764988708684,110.50869944,133.18,133.14,0.7]
[1764988708984,110.50869944,133.18,133.14,5.43594472]
[1764988709145,103.0,133.18,133.14,5.43594472]
[1764988709352,103.0,133.18,133.15,0.7]
[1764988709985,103.67,133.18,133.15,0.7]
[1764988710286,103.67,133.18,133.14,8.21037556]
[1764988710287,0.67,133.17,133.14,8.21037556]
[1764988710576,1.57,133.17,133.14,8.21037556]
[1764988710863,0.9,133.17,133.14,7.51037556]
[1764988711186,111.17882587,133.18,133.15,0.7]
[1764988714506,103.67,133.18,133.15,8.21029308]
[1764988715014,103.67,133.18,133.15,12.9462378]
[1764988715213,111.17873387,133.18,133.15,0.7]
[1764988717439,103.67,133.18,133.15,0.7]
[1764988721243,103.67,133.18,133.13,13.88594472]
[1764988721244,0.67,133.17,133.13,13.88594472]
[1764988721428,5.40594472,133.17,133.13,9.15]
[1764988721630,5.40594472,133.17,133.14,0.71]
[1764988721828,5.63594472,133.17,133.14,0.71]
[1764988722028,1.57,133.17,133.14,0.71]
[1764988722349,9.07957766,133.17,133.14,0.71]
[1764988723922,8.17957766,133.17,133.14,0.71]
[1764988731935,0.67,133.16,133.14,0.71]
[1764988732756,0.67,133.16,133.13,15.95136572]
[1764988733056,8.16957766,133.17,133.14,0.69]
[1764988737755,0.9,133.16,133.14,0.69]
[1764988739528,27.15448594,133.17,133.14,0.69]
[1764988739960,8.16957766,133.17,133.14,0.69]
[1764988740562,27.15448594,133.17,133.14,0.69]
[1764988742767,0.9,133.16,133.14,0.69]
[1764988744663,0.9,133.16,133.15,3.03354256]
[1764988744853,0.9,133.16,133.14,11.2342326]
[1764988745163,110.50868034,133.18,133.15,0.69]
[1764988745662,111.16868034,133.18,133.15,0.69]
[1764988747363,103.66,133.18,133.15,8.2003068]
[1764988747664,103.66,133.18,133.16,0.69]
[1764988748248,103.0,133.18,133.16,0.69]
[1764988749666,103.71,133.18,133.16,0.69]
[1764988750045,111.21864378,133.18,133.16,0.69]
[1764988760563,103.71,133.18,133.16,0.69]
[1764988760763,114.2523767,133.18,133.15,0.69]
[1764988761657,0.71,133.17,133.14,0.69]
[1764988762172,1.61,133.17,133.14,0.69]
[1764988767944,110.50883414,133.18,133.14,11.23439804]
[1764988768148,111.21883414,133.18,133.14,11.23439804]
[1764988768352,111.21883414,133.18,133.15,0.69]
[1764988768668,103.0,133.18,133.15,0.69]
[1764988768872,103.0,133.18,133.15,3.72354256]
[1764988769053,103.0,133.18,133.16,0.69]
[1764988773276,110.508652,133.18,133.16,0.69]
[1764988776779,24.548864,133.21,133.17,3.03354256]
[1764988776986,24.548864,133.21,133.16,8.19974284]
[1764988776987,28.29240656,133.21,133.16,11.2332854]
[1764988777170,28.29240656,133.21,133.17,0.69]
[1764988777369,0.9,133.2,133.17,0.69]
[1764988777679,35.7997654,133.21,133.17,0.69]
[1764988779584,27.58240656,133.21,133.17,8.19916254]
[1764988779788,16.308864,133.21,133.18,0.69]
[1764988780778,3.69354256,133.2,133.16,8.93]
[1764988780980,3.69354256,133.2,133.17,0.69]
[1764988781177,7.50807117,133.19,133.17,0.69]
[1764988783387,7.50772941,133.2,133.17,0.69]
[1764988783988,8.16772941,133.2,133.17,0.69]
[1764988784361,7.50772941,133.2,133.17,0.69]
[1764988785086,8.16772941,133.2,133.17,0.69]
[1764988786391,0.66,133.19,133.17,0.69]
[1764988786964,8.168153,133.19,133.17,0.69]
[1764988787371,0.66,133.19,133.17,0.69]
[1764988795683,8.21772604,133.2,133.17,0.69]
[1764988795991,7.50772604,133.2,133.17,0.69]
[1764988796198,8.21772604,133.2,133.17,0.69]
[1764988798694,7.50772604,133.2,133.17,0.69]
[1764988798903,8.21772604,133.2,133.17,0.69]
[1764988800087,28.70497143,133.2,133.17,0.69]
[1764988802109,8.21772604,133.2,133.17,0.69]
[1764988802882,7.50772604,133.2,133.17,0.69]
[1764988803385,8.21772604,133.2,133.17,0.69]
[1764988804305,8.21772604,133.2,133.17,5.42750575]
[1764988804606,8.21772604,133.2,133.18,0.71]
[1764988805611,8.21772604,133.2,133.17,5.44750575]
[1764988806398,8.21772604,133.2,133.16,20.48724539]
[1764988806717,8.21772604,133.2,133.17,0.71]
[1764988809013,7.50772604,133.2,133.17,0.71]
[1764988809912,8.18772604,133.2,133.17,0.71]
[1764988817320,44.3032276,133.21,133.17,12.95658798]
[1764988817498,118.74645238,133.22,133.18,4.73750575]
[1764988817698,20.48724539,133.23,133.2,4.73750575]
[1764988817900,124.16257218,133.25,133.2,4.73750575]
[1764988818197,8.92,133.24,133.21,0.72]
[1764988818392,111.92,133.25,133.21,5.45750575]
[1764988818593,119.42480313,133.25,133.21,5.45750575]
[1764988818807,127.66480313,133.25,133.22,0.72]
[1764988819526,0.68,133.24,133.21,5.45750575]
[1764988819704,1.58,133.24,133.22,0.72]
[1764988819904,1.58,133.24,133.21,12.96442902]
[1764988820113,0.68,133.24,133.22,0.72]
[1764988820314,132.40230888,133.25,133.22,0.72]
[1764988820618,127.66480313,133.25,133.22,0.72]
[1764988821624,126.98480313,133.25,133.22,0.72]
[1764988821923,0.68,133.24,133.21,12.96442902]
[1764988822923,0.68,133.24,133.22,0.72]
[1764988823424,127.66480313,133.25,133.22,0.72]
[1764988824626,0.9,133.24,133.22,0.72]
[1764988826423,0.9,133.24,133.22,5.45750575]
[1764988826631,126.98480313,133.25,133.23,0.72]
[1764988826812,118.74480313,133.25,133.23,0.72]
[1764988827006,119.42480313,133.25,133.23,0.72]
[1764988827403,119.42480313,133.25,133.22,5.45750575]
[1764988829620,0.68,133.24,133.21,5.45750575]
[1764988830429,0.68,133.24,133.21,4.73750575]
[1764988830726,0.68,133.24,133.22,0.72]
[1764988830915,127.66480313,133.25,133.22,0.72]
[1764988832126,9.48994492,133.24,133.2,0.72]
[1764988832330,9.48994492,133.24,133.2,5.45750575]
[1764988832633,0.68,133.23,133.2,5.45750575]
[1764988832816,0.68,133.23,133.21,0.72]
[1764988833217,29.23979429,133.24,133.21,0.72]
[1764988833420,20.42984937,133.24,133.21,0.72]
[1764988833629,8.18543425,133.24,133.21,0.72]
[1764988833931,124.16496456,133.25,133.22,4.73750575]
[1764988834124,123.48496456,133.25,133.22,4.73750575]
[1764988834332,123.48496456,133.25,133.23,0.72]
[1764988836713,103.0,133.25,133.23,12.96315651]
[1764988836913,103.0,133.25,133.24,0.72]
[1764988840729,38.96224078,133.27,133.24,0.72]
[1764988842742,0.66,133.26,133.24,0.72]
[1764988842916,38.94224078,133.27,133.24,0.72]
[1764988843544,30.70224078,133.27,133.24,0.72]
[1764988845638,132.28636975,133.28,133.24,5.45750575]
[1764988845639,128.208864,133.28,133.24,5.45750575]
[1764988845838,8.16368604,133.27,133.24,0.67]
[1764988846536,23.91004299,133.27,133.24,0.67]
[1764988846763,8.16368604,133.27,133.24,0.67]
[1764988847122,0.66,133.26,133.23,4.73750575]
[1764988847441,0.66,133.26,133.23,5.40750575]
[1764988848538,0.66,133.26,133.23,4.73750575]
[1764988848922,7.50469043,133.25,133.23,4.73750575]
[1764988849328,8.18469043,133.25,133.23,4.73750575]
[1764988850032,7.50469043,133.25,133.23,5.41750575]
[1764988850235,7.50469043,133.25,133.23,0.68]
[1764988850728,8.18469043,133.25,133.22,13.65750575]
[1764988852246,8.18547044,133.24,133.22,13.65750575]
[1764988852830,8.18547044,133.24,133.22,5.41750575]
[1764988853232,8.18547044,133.24,133.22,0.68]
[1764988854265,8.18547044,133.24,133.21,0.68]
[1764988854544,8.18547044,133.24,133.21,5.41750575]
[1764988854936,0.68,133.23,133.21,5.41750575]
[1764988855127,0.68,133.23,133.21,0.68]
[1764988855862,8.18547044,133.24,133.21,0.68]
[1764988857152,7.50547044,133.24,133.21,0.68]
[1764988857338,0.68,133.23,133.21,0.68]
[1764988857529,7.50547044,133.24,133.21,0.68]
[1764988857730,8.18547044,133.24,133.21,5.41750575]
[1764988858152,8.18547044,133.24,133.21,0.68]
[1764988861463,16.31463535,133.25,133.21,0.68]
[1764988861809,16.99463535,133.25,133.21,0.68]
[1764988861930,0.68,133.24,133.21,0.68]
[1764988862662,17.89463535,133.25,133.21,0.68]
[1764988863262,8.18558202,133.24,133.21,0.68]
[1764988866074,7.50558202,133.24,133.21,0.68]
[1764988866751,8.18558202,133.24,133.21,0.68]
[1764988867590,7.50558202,133.24,133.21,0.68]
[1764988874074,8.21558202,133.24,133.21,0.68]
[1764988875874,7.50558202,133.24,133.21,0.68]
[1764988877284,8.21558202,133.24,133.21,0.68]
[1764988878073,8.80994492,133.25,133.21,11.21696162]
[1764988878074,7.5047676,133.25,133.21,11.21696162]
[1764988878259,8.2147676,133.25,133.21,11.21696162]
[1764988878456,8.2147676,133.25,133.22,0.71]
[1764988880083,111.95,133.26,133.22,8.21605926]
[1764988880289,111.95,133.26,133.22,11.24613598]
[1764988880486,111.95,133.26,133.23,0.71]
[1764988881288,111.24,133.26,133.23,0.71]
[1764988881597,0.71,133.25,133.23,0.71]
[1764988881974,118.74426853,133.26,133.23,0.71]
[1764988882274,111.21426853,133.26,133.23,0.71]
[1764988883589,0.71,133.25,133.23,0.71]
[1764988887106,0.71,133.25,133.22,8.2163733]
[1764988887605,0.71,133.25,133.22,7.5063733]
[1764988887788,0.71,133.25,133.23,0.71]
[1764988887979,114.24434525,133.26,133.23,0.71]
[1764988888177,113.53434525,133.26,133.23,0.71]